Cogmind - Beta 9.6 @@@ ROGUE MODE // 2020.06.08 @ 19:57:17 Player: homogoblin Result: Destroyed by P-60 Hacker with Shock Rifle Performance ------------- Evolutions (3) 1500 Regions Visited (7) 1400 Robots Destroyed (27) 135 Value Destroyed (978) 978 Prototype IDs (1) 20 Alien Tech Used (0) 0 Bonus (69) 69 TOTAL SCORE: 4102 Bonus ------- High Alert Combat Kills 69 Cogmind --------- Core Integrity 0/700 Matter 5/300 Energy 84/100 System Corruption 1% Temperature Cool (12) Movement Walking (120) Location -7/Factory Parts ------- > --- POWER (2) -------- (None) > --- PROPULSION (4) --- Carbon-fiber Leg Carbon-fiber Leg Xenon Bombardment Thruster > --- UTILITY (5) ------ Target Analyzer > --- WEAPON (2) ------- Plasma Cannon > --- INVENTORY (4) ---- Cooled Airjet Xenon Bombardment Thruster Coolant Injector Heavy EM Shotgun Peak State ------------ > --- POWER ------------ Light Nuclear Core > --- PROPULSION ------- Advanced Treads > --- UTILITY ---------- Small Storage Unit Compact Battery Enhanced Optical Array Long-range Terrain Scanner Advanced Targeting Computer > --- WEAPON ----------- Gauss Cannon > --- INVENTORY -------- Carbon-fiber Leg Coolant Injector Target Analyzer Heavy EM Shotgun Plasma Cannon Missile Launcher [Rating: 27] Favorites ----------- Power Improved Ion Engine Engine Improved Ion Engine Power Core Light Nuclear Core Propulsion Light Treads Treads Light Treads Leg Improved Aluminum Leg Wheel Compact Wheel Hover Unit Cooled Airjet Flight Unit Xenon Bombardment Thruster Utility Small Storage Unit Device Trap Extractor Storage Small Storage Unit Processor Targeting Computer Weapon Light Assault Rifle Energy Gun EM Pulse Gun Energy Cannon Plasma Cannon Ballistic Gun Light Assault Rifle Ballistic Cannon Gauss Cannon Launcher Grenade Launcher Build | -11 -10 -9 -9 -9 -8 -8 -7 ------- Run | Scr Mat Mat Min Exi Min Mat Fac Slots Evolved 6 | . . 2 . . . 2 2 Power 1 | . . . . . . . 1 Propulsion 2 | . . 1 . . . . 1 Utility 3 | . . 1 . . . 2 . Weapon . | . . . . . . . . Parts Attached 51 | 6 3 1 . 3 . 11 27 Power 7 | 1 1 . . . . 1 4 Engine 3 | 1 1 . . . . . 1 Core 4 | . . . . . . 1 3 Reactor . | . . . . . . . . Propulsion 14 | 2 . 1 . 2 . 2 7 Treads 6 | . . 1 . 2 . . 3 Leg 4 | . . . . . . 2 2 Wheel 2 | 2 . . . . . . . Hover 1 | . . . . . . . 1 Flight 1 | . . . . . . . 1 Utility 15 | 1 1 . . 1 . 3 9 Device 7 | . . . . 1 . 2 4 Storage 3 | 1 . . . . . . 2 Processor 5 | . 1 . . . . 1 3 Hackware . | . . . . . . . . Protection . | . . . . . . . . Artifact . | . . . . . . . . Weapon 15 | 2 1 . . . . 5 7 Energy Gun 5 | 1 . . . . . 3 1 Energy Cannon 2 | . . . . . . 1 1 Ballistic Gun 1 | 1 . . . . . . . Ballistic Cannon 4 | . . . . . . . 4 Launcher 3 | . 1 . . . . 1 1 Special Weapon . | . . . . . . . . Impact Weapon . | . . . . . . . . Slashing Weapon . | . . . . . . . . Piercing Weapon . | . . . . . . . . Special Melee Weapon . | . . . . . . . . Unidentified Prototypes 1 | . . . . . . . 1 Parts Lost 25 | . . 1 . . . 8 16 Power 4 | . . . . . . 1 3 Propulsion 7 | . . 1 . . . 3 3 Utility 6 | . . . . . . . 6 Weapon 8 | . . . . . . 4 4 Highest Loss Streak 7 | . . 1 . . . 4 7 Average Slot Usage (%) 72 | . 91 83 77 93 100 60 48 Engine 7 | . 14 11 11 11 11 5 1 Core 1 | . . . . . . . 4 Treads 16 | . . 7 11 32 33 15 3 Leg 1 | . . . . . . . 4 Wheel 2 | . 28 21 11 . . . . Device 6 | . . . . 5 11 11 4 Storage 10 | . 14 11 11 11 11 9 11 Processor 9 | . 6 11 11 11 11 8 8 Energy Gun 1 | . 1 . . . . 3 . Ballistic Gun 5 | . 14 11 11 11 11 2 . Ballistic Cannon 1 | . . . . . . . 4 Launcher 5 | . 12 11 11 11 11 2 . Naked Turns . | . . . . . . . . Heaviest Build 27 | 12 15 15 15 17 17 18 27 Greatest Support 32 | 32 32 32 20 20 20 26 30 Greatest Overweight (x) 6 | . . . . . . 4 6 Average Overweight (x) . | . . . . . . . . Largest Inventory Capacity 6 | 6 6 6 6 6 6 6 6 Average Capacity 5 | 5 6 6 6 6 6 6 5 Most Carried 6 | 3 4 6 6 6 4 6 6 Average Carried 3 | . 2 5 6 4 4 4 3 Final Capacity 6 | 6 6 6 6 6 6 6 4 Final Carried 6 | . 3 6 6 4 4 5 4 Class Distribution -------------------- 100% | Mutant Dominant Class ---------------- Mutant | -10/Materials Mutant | -9/Materials Mutant | -9/Mines Mutant | -9/Exiles Mutant | -8/Mines Mutant | -8/Materials Mutant | -7/Factory Resources | -11 -10 -9 -9 -9 -8 -8 -7 ----------- Run | Scr Mat Mat Min Exi Min Mat Fac Matter Collected 746 | 246 . 87 . . . 234 179 Remotely . | . . . . . . . . Salvage Created 827 | . 89 112 . . . 391 235 Parts 43 | . 7 5 . . . 22 9 Haulers Intercepted . | . . . . . . . . Recyclers Shooed . | . . . . . . . . Parts Field Recycled . | . . . . . . . . Retrieved Matter . | . . . . . . . . Parts Self-Destructed . | . . . . . . . . Prevented . | . . . . . . . . Kills | -11 -10 -9 -9 -9 -8 -8 -7 ------- Run | Scr Mat Mat Min Exi Min Mat Fac Combat Hostiles Destroyed 21 | . 3 1 . . . 10 7 Guns 8 | . . 1 . . . 6 1 Cannons 7 | . . . . . . 1 6 AOE 6 | . 3 . . . . 3 . Classes Destroyed 9 | . 3 1 . . . 3 2 Worker 1 | . 1 . . . . . . Builder 1 | . . . . . . 1 . Recycler 1 | . . 1 . . . . . Operator 1 | . . . . . . 1 . Watcher 2 | . 1 1 . . . . . Swarmer 3 | . . . . . . 3 . Grunt 16 | . 3 1 . . . 7 5 Sentry 1 | . . . . . . . 1 Hunter 1 | . . . . . . . 1 Best Kill Streak 6 | . 5 2 . . . 6 5 Combat Bots Only 5 | . 3 1 . . . 5 5 Max Kills in Single Turn 2 | . 2 1 . . . 1 1 Gunslinging . | . . . . . . . . Exploded 2 | . 2 . . . . 1 . Melee . | . . . . . . . . Uniques/NPCs Destroyed . | . . . . . . . . Combat | -11 -10 -9 -9 -9 -8 -8 -7 -------- Run | Scr Mat Mat Min Exi Min Mat Fac Damage Taken 3177 | . 44 143 . . . 948 2042 Core 863 | . . 6 . . . 157 700 Absorbed by Shields 36 | . . . . . . . 36 Core Remaining (%) 92 | 100 100 . . . 98 71 . Volleys Fired 129 | . 5 15 . . . 62 47 Largest 1 | . 1 1 . . . 1 1 Hottest 80 | . 30 30 . . . 65 80 Shots Fired 129 | . 5 15 . . . 62 47 Gun 62 | . 1 8 . . . 51 2 Cannon 50 | . . . . . . 5 45 Launcher 17 | . 4 7 . . . 6 . Special . | . . . . . . . . Kinetic 71 | . 1 8 . . . 18 44 Thermal 12 | . . . . . . 11 1 Explosive 17 | . 4 7 . . . 6 . Electromagnetic 29 | . . . . . . 27 2 Robot Hit Streak 8 | . 1 2 . . . 8 7 Robot Miss Streak 5 | . 1 2 . . . 3 5 Penetration Max . | . . . . . . . . Secondary Targets . | . . . . . . . . Shots Hit Robots 71 | . 1 4 . . . 38 28 Core Hits 56 | . 11 5 . . . 26 14 Critical Hits 4 | . . . . . . . 4 Critical Kills 1 | . . . . . . . 1 Critical Parts Destroyed 3 | . . . . . . . 3 Melee Attacks . | . . . . . . . . Impact . | . . . . . . . . Slashing . | . . . . . . . . Piercing . | . . . . . . . . Sneak Attacks . | . . . . . . . . Combat Hostiles . | . . . . . . . . Follow-up Attacks . | . . . . . . . . Damage Inflicted 2172 | . 228 232 . . . 914 798 Guns 523 | . 7 18 . . . 468 30 Cannons 854 | . . . . . . 86 768 Explosions 794 | . 221 213 . . . 360 . Melee . | . . . . . . . . Ramming 1 | . . 1 . . . . . Kinetic 899 | . 7 18 . . . 106 768 Thermal 269 | . . . . . . 269 . Explosive 687 | . 206 213 . . . 268 . Electromagnetic 316 | . 15 . . . . 271 30 Impact . | . . . . . . . . Slashing . | . . . . . . . . Piercing . | . . . . . . . . Highest Corruption 1 | . . . . . . 1 1 Average Corruption 1 | . . . . . . 1 1 Corruption Purged . | . . . . . . . . Effects 10 | . . . . . . 4 6 Message Errors 7 | . . . . . . 3 4 Energy Discharges 1 | . . . . . . . 1 Targeting Errors 2 | . . . . . . 1 1 Overload Shots . | . . . . . . . . Overflow Damage . | . . . . . . . . Projectiles . | . . . . . . . . Explosions . | . . . . . . . . Melee . | . . . . . . . . Knockbacks 8 | . . . . . . . 8 Impact . | . . . . . . . . Kinetic 8 | . . . . . . . 8 Secondary . | . . . . . . . . Self-Inflicted Damage 110 | . 35 19 . . . 56 . Shots 6 | . 2 2 . . . 2 . Rammed 1 | . . 1 . . . . . Targets Rammed 1 | . . 1 . . . . . Kicked . | . . . . . . . . Crushed . | . . . . . . . . Highest Temperature 137 | . . . . . . 86 137 Average Temperature 44 | . . . . . . 37 52 Received Heat Transfer 1152 | . 6 84 . . . 441 621 Siege Activations . | . . . . . . . . Robots Corrupted . | . . . . . . . . Combat Hostiles . | . . . . . . . . Parts Fried 1 | . . . . . . 1 . Impact Corruptions . | . . . . . . . . Robots Melted . | . . . . . . . . Combat Hostiles . | . . . . . . . . Parts Melted . | . . . . . . . . Heat Transferred 507 | . . . . . . 507 . Parts Sabotaged . | . . . . . . . . Parts Stolen . | . . . . . . . . Parts Stripped . | . . . . . . . . Power Chain Reactions 1 | . . . . . . 1 . Missiles Intercepted . | . . . . . . . . Alert | -11 -10 -9 -9 -9 -8 -8 -7 ------- Run | Scr Mat Mat Min Exi Min Mat Fac Peak Influence 484 | . 132 132 47 . . 251 484 Average Influence 182 | . 87 91 47 . . 122 292 Maximum Alert Level 2 | . . . . . . 1 2 Low Security (%) 57 | 100 100 100 100 . 100 71 24 Level 1 28 | . . . . . . 28 43 Level 2 14 | . . . . . . . 32 Level 3 . | . . . . . . . . Level 4 . | . . . . . . . . Level 5 . | . . . . . . . . High Security . | . . . . . . . . Max Security . | . . . . . . . . Squads Dispatched 11 | . . 4 . . . 2 5 Investigation . | . . . . . . . . Extermination 1 | . . . . . . . 1 Reinforcement 7 | . . 4 . . . 2 1 Assault . | . . . . . . . . Garrison 3 | . . . . . . . 3 Intercept . | . . . . . . . . Construction Impeded 1 | . . . . . . 1 . Haulers Reinforced . | . . . . . . . . Stealth | -11 -10 -9 -9 -9 -8 -8 -7 --------- Run | Scr Mat Mat Min Exi Min Mat Fac Distress Signals 3 | . . 3 . . . . . Communications Jammed . | . . . . . . . . Distress Signals . | . . . . . . . . Times Spotted 47 | . 4 8 . . . 18 17 Peak Tracking Total 5 | . 3 3 . . . 4 5 Tactical Retreats 2 | . . . . . . 1 1 Traps | -11 -10 -9 -9 -9 -8 -8 -7 ------- Run | Scr Mat Mat Min Exi Min Mat Fac Traps Triggered 7 | . . . . . . 1 6 Indirectly . | . . . . . . . . Trap Hack Attempts . | . . . . . . . . Triggered . | . . . . . . . . Disarmed 4 | . . . . . . 4 . Reprogrammed . | . . . . . . . . Reused . | . . . . . . . . Traps Extracted . | . . . . . . . . Installed . | . . . . . . . . Triggered . | . . . . . . . . Machines | -11 -10 -9 -9 -9 -8 -8 -7 ---------- Run | Scr Mat Mat Min Exi Min Mat Fac Machines Disabled 7 | . 2 2 . . . 2 1 Max in Single Turn 1 | . 1 1 . . . 1 1 Machines Sabotaged . | . . . . . . . . Garrisons Compromised . | . . . . . . . . Overloaded Fab Kills . | . . . . . . . . Fab Network Shutdowns 1 | . . . . . . . 1 Hacking | -11 -10 -9 -9 -9 -8 -8 -7 --------- Run | Scr Mat Mat Min Exi Min Mat Fac Machines Accessed 8 | . 1 . . 1 . 3 3 Terminals 6 | . 1 . . . . 3 2 Fabricators 1 | . . . . . . . 1 Repair Stations . | . . . . . . . . Recycling Units . | . . . . . . . . Scanalyzers . | . . . . . . . . Garrison Access . | . . . . . . . . Total Hacks 38 | . 4 . . 23 . 7 4 Successful 30 | . 1 . . 23 . 3 3 Failed 8 | . 3 . . . . 4 1 Catastrophic 3 | . . . . . . 2 1 Database Lockouts . | . . . . . . . . Manual . | . . . . . . . . Terminals 13 | . 4 . . . . 7 2 Fabricators 2 | . . . . . . . 2 Repair Stations . | . . . . . . . . Recycling Units . | . . . . . . . . Scanalyzers . | . . . . . . . . Garrison Access . | . . . . . . . . Terminal Hacks 28 | . 1 . . 23 . 3 1 Record 23 | . . . . 23 . . . Unreport Threat 1 | . . . . . . 1 . Disarm Traps 1 | . . . . . . 1 . Recall Investigation 1 | . . . . . . . 1 Zone Layout 2 | . 1 . . . . 1 . Fabricator Hacks 2 | . . . . . . . 2 Network Status 1 | . . . . . . . 1 Build 1 | . . . . . . . 1 Repair Station Hacks . | . . . . . . . . Recycling Unit Hacks . | . . . . . . . . Scanalyzer . | . . . . . . . . Garrison Access Hacks . | . . . . . . . . Unauthorized Hacks . | . . . . . . . . Terminals . | . . . . . . . . Fabricators . | . . . . . . . . Repair Stations . | . . . . . . . . Recycling Units . | . . . . . . . . Scanalyzers . | . . . . . . . . Garrison Access . | . . . . . . . . Data Cores Recovered . | . . . . . . . . Used . | . . . . . . . . Hacking Detections 5 | . 1 . . . . 3 1 Full Trace Events 1 | . . . . . . 1 . Feedback Events . | . . . . . . . . Feedback Blocked . | . . . . . . . . Robot Schematics Acquired . | . . . . . . . . Robots Built . | . . . . . . . . Matter . | . . . . . . . . Time . | . . . . . . . . Total Robot Build Rating . | . . . . . . . . Part Schematics Acquired . | . . . . . . . . Parts Built 1 | . . . . . . . 1 Matter 190 | . . . . . . . 190 Time 95 | . . . . . . . 95 Total Part Build Rating 5 | . . . . . . . 5 Parts Repaired . | . . . . . . . . Time . | . . . . . . . . Parts Recycled . | . . . . . . . . Recycled Matter . | . . . . . . . . Retrieved Matter . | . . . . . . . . Retrieved Components . | . . . . . . . . Parts Scanalyzed . | . . . . . . . . Part Schematics Acquired . | . . . . . . . . Parts Damaged . | . . . . . . . . Bothacking | -11 -10 -9 -9 -9 -8 -8 -7 ------------ Run | Scr Mat Mat Min Exi Min Mat Fac Used RIF Installer . | . . . . . . . . Robots Hacked . | . . . . . . . . Non-combat . | . . . . . . . . Combat . | . . . . . . . . Robot Hacks Applied . | . . . . . . . . Relay Couplers Released . | . . . . . . . . Robots Rewired . | . . . . . . . . Allies Hacked . | . . . . . . . . Hacks Repelled . | . . . . . . . . Allies | -11 -10 -9 -9 -9 -8 -8 -7 -------- Run | Scr Mat Mat Min Exi Min Mat Fac Total Allies 1 | . . . 1 . . . . Largest Group 1 | . . . 1 1 . . . Highest-Rated Group 31 | . . . 31 31 . . . Highest-Rated Ally 31 | . . . 31 31 . . . Total Orders . | . . . . . . . . Ally Attacks . | . . . . . . . . Total Damage . | . . . . . . . . Kills . | . . . . . . . . Allies Corrupted . | . . . . . . . . Allies Melted . | . . . . . . . . Intel | -11 -10 -9 -9 -9 -8 -8 -7 ------- Run | Scr Mat Mat Min Exi Min Mat Fac Robot Analysis Total . | . . . . . . . . Derelict Logs Recovered . | . . . . . . . . Drone Launches . | . . . . . . . . Drone Recoveries . | . . . . . . . . Exploration | -11 -10 -9 -9 -9 -8 -8 -7 ------------- Run | Scr Mat Mat Min Exi Min Mat Fac Turns Passed 3069 | 56 109 185 24 999 119 648 929 Spaces Moved 1859 | 46 89 115 16 622 75 298 598 Core 161 | 5 . . . . . 89 67 Treads 1275 | . . 60 16 622 75 192 310 Legs 203 | . . . . . . 17 186 Wheels 185 | 41 89 55 . . . . . Hover 35 | . . . . . . . 35 Flight . | . . . . . . . . Fastest Speed 50 | 50 100 100 160 160 160 100 50 Average Speed 140 | 94 100 131 160 160 160 143 127 Slowest Speed 350 | 100 100 160 160 160 160 250 350 Overloaded Moves . | . . . . . . . . Propulsion Burnouts . | . . . . . . . . Robots Hopped . | . . . . . . . . Cave-ins Triggered . | . . . . . . . . Exploration Rate (%) 27 | 4 20 19 5 90 30 34 16 Regions Visited 7 Branch Regions 3 Pre-discovered Areas 1 | . . . . 1 . . . Known Exits Taken . | . . . . . . . . Unknown Exits Taken 7 | 1 1 1 1 1 1 1 . Scrap Searched . | . . . . . . . . Spaces Dug 16 | . . 16 . . . . . Terrain Destroyed 115 | . 31 49 . . . 29 6 Melee . | . . . . . . . . Projectile 6 | . . . . . . . 6 AOE 109 | . 31 49 . . . 29 . Actions | -11 -10 -9 -9 -9 -8 -8 -7 --------- Run | Scr Mat Mat Min Exi Min Mat Fac Total 2194 | 59 104 135 15 626 74 462 719 Wait 98 | . . . . . . 79 19 Move 1852 | 45 88 114 15 621 74 297 598 Hop . | . . . . . . . . Pick Up 52 | 7 6 4 . 1 . 7 27 Fast Attach . | . . . . . . . . Attach 47 | 6 2 1 . 3 . 8 27 Detach 4 | . . . . . . 3 1 Swap 4 | . 1 . . . . 3 . Drop 7 | 1 2 . . 1 . 3 . Fire 129 | . 5 15 . . . 62 47 Melee . | . . . . . . . . Ram . | . . . . . . . . Kick . | . . . . . . . . Crush 1 | . . 1 . . . . . Escape Stasis . | . . . . . . . . Rewire . | . . . . . . . . Trap . | . . . . . . . . Miscellaneous . | . . . . . . . . Route ------- -11/Scrapyard -10/Materials -9/Materials -9/Mines -9/Exiles -8/Mines -8/Materials -7/Factory History --------- Turn | Location | Event 38 | -11/Scrapyard | Discovered new exit (range 12) 57 | -11/Scrapyard | Entered Materials 158 | -10/Materials | Discovered new exit (range 9) 166 | -10/Materials | Entered another Materials area 166 | -9/Materials | Evolved 2 slots: Propulsion x1, Utility x1 304 | -9/Materials | Build established: Mutant 320 | -9/Materials | Met 8R-AWN 333 | -9/Materials | Discovered new exit (range 10) 351 | -9/Materials | Entered Mines 353 | -9/Mines | Followed 8R-AWN into the Mines 354 | -9/Mines | Received a Mining Laser from a helpful Derelict 369 | -9/Mines | Discovered new exit (range 5) 375 | -9/Mines | Entered Exiles 375 | -9/Exiles | Accompanied by 1 ally 420 | -9/Exiles | Welcomed by 8R-AWN 452 | -9/Exiles | Met EX-HEX 584 | -9/Exiles | Visited The Gauntlet 772 | -9/Exiles | Met EX-DEC 832 | -9/Exiles | Learned location of Zion (-7) 927 | -9/Exiles | Discovered new exit (range 11) 1033 | -9/Exiles | Met EX-BIN 1374 | -9/Exiles | Entered Mines 1477 | -8/Mines | Discovered new exit (range 11) 1493 | -8/Mines | Entered Materials 1493 | -8/Materials | Evolved 2 slots: Utility x2 1740 | -8/Materials | Lost 4 parts (1n3w) 1982 | -8/Materials | Lost 4 parts (1p2n1w) 2124 | -8/Materials | Discovered new exit (range 10) 2141 | -8/Materials | Entered Factory 2141 | -7/Factory | Evolved 2 slots: Power x1, Propulsion x1 2237 | -7/Factory | Local fabrication network quarantined 2281 | -7/Factory | Fabricated Imp. Cryofiber Web? 2383 | -7/Factory | Garrison activated, responded to threat 2446 | -7/Factory | Lost 7 parts (1p2n3u1w) 2966 | -7/Factory | Core integrity fell below 50% 2988 | -7/Factory | Core integrity fell below 20% 3036 | -7/Factory | Lost 6 parts (1p1n3u1w) 3070 | -7/Factory | Destroyed by P-60 Hacker with Shock Rifle Last Messages --------------- KM-KR1(g): "Maybe since they're already in the area we're better off sticking together. Just don't get me killed when they show up, yeah?" Sml. Storage Unit destroyed. S-27 Virus destroyed. ZMWZ|XJG=SX4Y: RTDD3N76PTYUVM< Acquired 29 matter. S-27 Virus destroyed. O-24 Administrator: "IFF HANDSHAKE FAILED. SECURING TERMINAL." Com. Battery destroyed. ALERT: Hostiles spotted, dispatching reinforcements to Terminal F012. Acquired Prototype Hover Unit. Identified Cld. Airjet. The Cld. Airjet is "overloadable", activating it again increases its output for additional resource costs, and may damage the unit. K-01 Serf cleans the Fabricator. K-01 Serf cleans the Power Conduit. Acquired Carbon-fiber Leg. K-01 Serf cleans the Fabricator. Acquired Xenon Bombardment Thruster. K-01 Serf cleans the Fabricator. Map ----- +----------------------------------------------------+ | #??????????+??### ###?? ??????????????????????? | | #?????????? ??# ###+##?????????????????????? | | #????????## ### ??????????????????????? | | ?????????# ???????????????????????? | | ?????????+ ????????????????????????? | | ?????????# ????????????????????????? | | ?????????# ?????????????????????????? | | ?????????# """" ??????????????????????????? | | ?????????# """" #???????????????????????????? | | ?????????# """" #???????????????????????????? | | ########## """" #???????????????????????????? | | """""" ## """" #???????????????????????????? | | """""" ## """" #???!???????????????????????? | | """""" ## #???!???????????????????????? | | """""" / + ? ???????????????????????? | | ## ##???"???????????????????????? | | ##### #???? ???????????????????????? | | #???# #???#p#??????????????????????? | | ##### #???# #??????????????????????? | | #"""# #???# #??????????????????????? | | #########"T"# #???# #??????????????????????? | | ??????# ##### #??????????????????????? | | ??????# """## #??????????????????????? | | ??????# !! ] / """## #??????????????????????? | | ?????## !! ] / F"## #??????????????????????? | | ???#"" ! ]/ ""##@#??????????????????????? | | ???#"F ##### ####???????????????????? | | ???#""" #???# #???????????????????? | | ???#""" """"""""" #???# #???????????????????? | | ???#### ##### #???????????????????? | | ??????# #???????????????????? | | ??????#### ##"" ""############???????????????????? | | ?????????# ?#"F ""#??????????????????????????????? | | ?????????# ?#"""""#??????????????????????????????? | | ?????????# ?######???????????????????????????????? | | ?????????#/??????????????????????????????????????? | | ?????????? ??????????????????????????????????????? | | ?????????????????????????????????????????????????? | | ?????????????????????????????????????????????????? | | ?????????????????????????????????????????????????? | | ?????????????????????????????????????????????????? | | ?????????????????????????????????????????????????? | | ?????????????????????????????????????????????????? | | ?????????????????????????????????????????????????? | | ?????????????????????????????????????????????????? | | ?????????????????????????????????????????????????? | | ?????????????????????????????????????????????????? | | ?????????????????????????????????????????????????? | | ?????????????????????????????????????????????????? | | ?????????????????????????????????????????????????? | +----------------------------------------------------+ Best States ------------- Heat Dissipation 34 Energy Generation 21 Energy Capacity 505 Matter Stores 300 Matter Capacity 300 Sight Range 22 Terrain Scan Range 24 Terrain Scan Density 85 ECM Strength 2 Evasion (%) 55 Targeting Accuracy 8 Target Analysis 5 Recoil Reduction 3 Item Schematics ----------------- None Robot Schematics ------------------ None Fabricated ------------ Imp. Cryofiber Web | x1 | -7/Factory | Preloaded Alien Tech Used ----------------- None Achievements -------------- Just What I Needed Librarian Tourist Challenges ------------ None Game ------ Seed FlightColdCutter Manual? 0 Play Time 00:40:39 Cumulative 4.9 hours Start 2020.06.08 @ 19:09:14 End 2020.06.08 @ 19:57:17 Sessions 1 Manual Loads 0 Difficulty Rogue Special Mode None Game No. 10 Rogue 6 Adventurer 3 Explorer 1 Win Type - Total 0 Types 0/0/0/0/0/0/0 Lore% 7 Gallery% 11 Achievement% 10 Wizard Run 0 Options --------- ASCII 0 Keyboard 0 Movement Mouse Keybinds 0 Fullscreen 2 Font 18/SmallcapsGlow Map View 76x50 Tactical HUD 0 Map Filters NONE Filters NONE Steam 1 RUN: 1d6a1be5-9ad6-4e36-a879-4c53ee43b568